bitfinex/quotes_BTCUSD_20260126
["timestamp","ask_amount","ask_price","bid_price","bid_amount"]
[1769441286049,0.03,88497.0,88476.0,0.67280211]
[1769441286634,0.03,88497.0,88476.0,0.66149961]
[1769441287291,0.03,88494.0,88468.0,0.66149961]
[1769441287525,0.03,88494.0,88439.0,0.4522855]
[1769441287526,0.03,88475.0,88457.0,0.03601238]
[1769441287722,0.03,88475.0,88460.0,0.01130454]
[1769441287850,0.03,88475.0,88462.0,0.01130428]
[1769441288050,0.03,88475.0,88457.0,0.02470746]
[1769441288257,0.03,88475.0,88457.0,0.03601238]
[1769441288454,0.03,88474.0,88457.0,0.03601238]
[1769441288659,0.03,88474.0,88461.0,0.05652172]
[1769441288867,0.03,88474.0,88459.0,0.01130467]
[1769441289067,0.03,88474.0,88461.0,0.01130441]
[1769441289246,0.03,88474.0,88460.0,0.06782719]
[1769441289579,0.03,88473.0,88459.0,0.06782797]
[1769441289750,0.03,88473.0,88460.0,0.01130454]
[1769441290161,0.03,88473.0,88458.0,0.66149961]
[1769441290378,0.03,88472.0,88458.0,0.66149961]
[1769441290556,0.03,88472.0,88455.0,0.23030518]
[1769441290982,0.03,88472.0,88455.0,0.219]
[1769441291410,0.03,88471.0,88455.0,0.219]
[1769441291609,0.03,88471.0,88455.0,0.2195946]
[1769441292145,0.03,88471.0,88455.0,0.88109421]
[1769441292346,0.03,88471.0,88455.0,0.94833044]
[1769441292562,0.03,88470.0,88455.0,0.88049961]
[1769441293242,0.03,88470.0,88461.0,0.01130441]
[1769441293441,0.02480275,88476.0,88460.0,0.01130454]
[1769441293659,0.02480275,88496.0,88469.0,0.01130339]
[1769441293860,0.02480275,88496.0,88460.0,0.08918042]
[1769441293861,0.0003812,88498.0,88472.0,0.02470746]
[1769441294058,0.0003812,88498.0,88471.0,0.01130313]
[1769441294211,0.2258101,88496.0,88477.0,0.01130237]
[1769441294419,0.2258101,88496.0,88480.0,0.06781137]
[1769441294616,0.2258101,88496.0,88472.0,0.68620707]
[1769441294617,0.03,88495.0,88478.0,0.01130224]
[1769441295152,0.03,88493.0,88477.0,0.66149961]
[1769441295372,0.03,88493.0,88478.0,0.05651094]
[1769441295574,0.03,88493.0,88477.0,0.67280198]
[1769441295774,0.03,88493.0,88477.0,0.66149961]
[1769441295929,0.03,88493.0,88478.0,0.01130224]
[1769441296134,0.03,88493.0,88477.0,0.66149961]
[1769441296135,0.0599884,88493.0,88477.0,0.66149961]
[1769441296563,0.0599884,88493.0,88473.0,0.01130288]
[1769441296739,0.02480275,88490.0,88470.0,0.66149961]
[1769441296946,0.03,88489.0,88470.0,0.66149961]
[1769441297346,0.03,88489.0,88470.0,0.67280287]
[1769441297554,0.03,88487.0,88470.0,0.67280287]
[1769441297775,0.03,88487.0,88470.0,0.66149961]
[1769441299720,0.2538773,88487.0,88468.0,0.17376]
[1769441300740,0.03,88485.0,88468.0,0.17376]
[1769441300944,0.03,88482.0,88469.0,0.01130339]
[1769441301145,0.03,88482.0,88468.0,0.87345158]
[1769441301358,0.03,88482.0,88470.0,0.01130326]
[1769441301689,0.03,88482.0,88469.0,0.01130339]
[1769441301818,0.03,88489.0,88470.0,0.01130326]
[1769441302020,0.05286995,88489.0,88470.0,0.01130326]
[1769441302223,0.05286995,88489.0,88472.0,0.71099459]
[1769441302424,0.05286995,88489.0,88472.0,0.69969158]
[1769441302669,0.03,88489.0,88473.0,0.06781688]
[1769441302846,0.03,88488.0,88476.0,0.67645159]
[1769441303047,0.03,88488.0,88472.0,0.01130301]
[1769441303233,0.03,88488.0,88471.0,0.75620689]
[1769441303234,0.05286995,88488.0,88471.0,0.71099471]
[1769441303430,0.03,88486.0,88472.0,0.01130301]
[1769441304406,0.03,88486.0,88474.0,0.69969158]
[1769441304611,0.03,88493.0,88474.0,0.69969158]
[1769441304831,0.03,88491.0,88474.0,0.69969158]
[1769441304992,0.05286995,88491.0,88474.0,0.69969158]
[1769441305203,0.05286995,88491.0,88468.0,0.19768993]
[1769441305204,0.05286995,88487.0,88469.0,0.01130339]
[1769441305404,0.05286995,88487.0,88468.0,0.20899345]
[1769441305605,0.03,88485.0,88468.0,0.20899345]
[1769441305990,0.05286995,88485.0,88468.0,0.20899345]
[1769441306210,0.05286995,88485.0,88468.0,0.19768993]
[1769441306408,0.05286995,88485.0,88470.0,0.0678194]
[1769441306613,0.05286995,88485.0,88472.0,0.01130301]
[1769441307154,0.03,88489.0,88472.0,0.71099459]
[1769441307307,0.03,88489.0,88472.0,0.69969158]
[1769441307508,0.03,88487.0,88472.0,0.69969158]
[1769441308062,0.05286995,88487.0,88472.0,0.69969158]
[1769441308277,0.05286995,88487.0,88464.0,0.01130403]
[1769441308278,0.03,88471.0,88458.0,0.0113048]
[1769441308448,0.03,88471.0,88456.0,0.01130505]
[1769441308449,0.05286995,88471.0,88456.0,0.01130505]
[1769441308820,0.05286995,88471.0,88455.0,0.21896]
[1769441309228,0.05286995,88471.0,88455.0,0.23026518]
[1769441309606,0.03,88467.0,88455.0,0.21896]
[1769441309782,0.03,88461.0,88455.0,0.04524]
[1769441310009,0.05286995,88461.0,88455.0,0.04524]
[1769441310376,0.05286995,88461.0,88439.0,0.01130722]
[1769441310377,0.03,88454.0,88431.0,0.01130825]
[1769441310580,0.00999999,88455.0,88436.0,0.17372]
[1769441310581,0.03,88450.0,88436.0,0.17372]
[1769441310778,0.03,88450.0,88438.0,0.01130735]
[1769441310974,0.03,88450.0,88439.0,0.01130722]
[1769441311174,0.03,88450.0,88440.0,0.0113071]
[1769441311372,0.03,88450.0,88438.0,0.06784376]
[1769441311714,0.02286995,88457.0,88440.0,0.0113071]
[1769441311715,0.03,88449.0,88440.0,0.0113071]
[1769441311864,0.03,88449.0,88438.0,0.01130735]
[1769441312567,0.03,88449.0,88436.0,0.87341158]
[1769441312774,0.03,88448.0,88436.0,0.87341158]
[1769441312973,0.03,88448.0,88436.0,0.17372]
[1769441313198,0.643845,88452.0,88436.0,0.17372]
[1769441313199,0.03,88446.0,88436.0,0.17372]
[1769441314180,0.03,88445.0,88436.0,0.17372]
[1769441315280,0.02286995,88449.0,88436.0,0.17372]
[1769441315281,0.03,88444.0,88436.0,0.17372]
[1769441315506,0.03,88444.0,88436.0,0.18502761]
[1769441315716,0.03,88444.0,88436.0,0.17372]
[1769441315923,0.03,88444.0,88436.0,0.18502761]
[1769441316122,0.03,88443.0,88437.0,0.01130748]
[1769441316388,0.03,88443.0,88438.0,0.01130735]
[1769441316604,0.03,88443.0,88436.0,0.18502761]
[1769441316794,0.03,88443.0,88438.0,0.01130735]
[1769441316919,0.03,88443.0,88437.0,0.01130748]
[1769441317124,0.02286995,88449.0,88437.0,0.01130748]
[1769441317125,0.03,88442.0,88437.0,0.01130748]
[1769441317397,0.03,88442.0,88436.0,0.24156534]
[1769441317398,0.277855,88469.0,88436.0,0.17372]
[1769441317582,0.09033584,88472.0,88436.0,0.17372]
[1769441317583,0.06129179,88468.0,88448.0,0.02429396]
[1769441317784,0.66671495,88466.0,88448.0,0.02429396]
[1769441317988,0.643845,88465.0,88447.0,0.0113062]
[1769441318186,0.66671495,88465.0,88447.0,0.0113062]
[1769441318389,0.03,88460.0,88442.0,0.01130684]
[1769441318805,0.03,88458.0,88441.0,0.02429396]
[1769441318954,0.673845,88458.0,88438.0,0.01130735]
[1769441319153,0.03,88456.0,88437.0,0.69969158]
[1769441319352,0.03,88450.0,88436.0,0.17372]
[1769441319695,0.69671495,88450.0,88436.0,0.17372]
[1769441319837,0.03,88448.0,88431.0,0.69969158]
[1769441320656,0.673845,88448.0,88428.0,0.01130863]
[1769441320908,0.03,88449.0,88430.0,0.05654184]
[1769441321069,0.03,88449.0,88431.0,0.72398554]
[1769441321283,0.03,88449.0,88435.0,0.05653826]
[1769441321495,0.643845,88472.0,88435.0,0.01034486]
[1769441321802,0.02286995,88467.0,88444.0,0.72398554]
[1769441322001,0.673845,88466.0,88444.0,0.72398554]
[1769441322166,0.03,88464.0,88446.0,0.01130633]
[1769441322368,0.03,88464.0,88447.0,0.0113062]
[1769441322568,0.03,88464.0,88448.0,0.05653039]
[1769441322785,0.04524,88485.0,88465.0,0.0113039]
[1769441322993,0.04524,88485.0,88472.0,0.01130301]
[1769441323218,0.03,88491.0,88473.0,0.01147188]
[1769441323620,0.03,88491.0,88471.0,0.01130313]
[1769441323815,0.03,88491.0,88471.0,0.06781837]
[1769441324016,0.03,88491.0,88471.0,0.0678187]
[1769441324220,0.03,88491.0,88470.0,0.79180511]
[1769441324446,0.03,88491.0,88471.0,0.01130313]
[1769441324647,0.03,88491.0,88472.0,0.01130301]
[1769441324851,0.03,88491.0,88473.0,0.03888194]
[1769441325196,0.03,88491.0,88473.0,0.73857352]
[1769441325424,0.03,88491.0,88473.0,0.72398554]
[1769441325639,0.673845,88489.0,88465.0,0.02429396]
[1769441326000,0.69671495,88489.0,88465.0,0.72398554]
[1769441326460,0.03,88487.0,88465.0,0.72398554]
[1769441326885,0.03,88487.0,88465.0,0.78050469]
[1769441327083,0.03,88485.0,88469.0,0.01130339]
[1769441327308,0.03,88485.0,88468.0,0.03559748]
[1769441327538,0.03,88485.0,88469.0,0.71099497]
[1769441327754,0.03,88485.0,88469.0,0.69969158]
[1769441328174,0.02286995,88488.0,88471.0,0.02429396]
[1769441328175,0.03,88488.0,88471.0,0.02429396]
[1769441328328,0.03,88488.0,88474.0,0.69969158]
[1769441328534,0.03,88488.0,88475.0,0.02429396]
[1769441328806,0.03,88488.0,88469.0,0.01130339]
[1769441328807,0.04524,88510.0,88483.0,0.03587749]
[1769441328991,0.17376,88507.0,88487.0,0.02457589]
[1769441329162,0.03,88506.0,88487.0,0.02457589]
[1769441329571,0.05171755,88506.0,88487.0,0.02457589]
[1769441329995,0.05171755,88506.0,88482.0,0.65227256]
[1769441329996,0.03,88506.0,88489.0,0.02457589]
[1769441330193,0.02171755,88514.0,88489.0,0.02457589]
[1769441330194,0.03,88505.0,88489.0,0.02457589]
[1769441330586,0.17376,88516.0,88489.0,0.02457589]
[1769441330587,0.0003812,88520.0,88492.0,0.65227256]
[1769441330788,0.1741412,88520.0,88495.0,0.65227256]
[1769441330993,0.1741412,88520.0,88497.0,0.02457589]
[1769441331342,0.03,88519.0,88497.0,0.0240437]
[1769441331490,0.03,88519.0,88498.0,0.65227256]
[1769441331707,0.03,88519.0,88499.0,0.65227256]
[1769441331924,0.03,88519.0,88500.0,0.01397599]
[1769441332266,0.05285856,88519.0,88500.0,0.01381979]
[1769441332480,0.05285856,88519.0,88495.0,0.65227256]
[1769441332697,0.06415595,88516.0,88495.0,0.65227256]
[1769441332846,0.05285856,88516.0,88495.0,0.65227256]
[1769441333450,0.03,88516.0,88494.0,0.02457589]
[1769441333651,0.18543808,88520.0,88492.0,0.17376]
[1769441333652,0.05649212,88508.0,88492.0,0.17376]
[1769441333838,0.03,88503.0,88492.0,0.17376]
[1769441334039,0.03,88501.0,88492.0,0.17376]
[1769441334251,0.03,88501.0,88480.0,0.65227256]
[1769441334456,0.03,88499.0,88480.0,0.82599256]
[1769441334653,0.03,88495.0,88463.0,0.01130416]
[1769441335012,0.03,88493.0,88470.0,0.21896]
[1769441335133,0.69698678,88500.0,88470.0,0.23026326]
[1769441335134,0.05285856,88491.0,88470.0,0.23026326]
[1769441335350,0.03,88491.0,88474.0,0.66357531]
[1769441335551,0.03,88491.0,88475.0,0.01130262]
[1769441335808,0.03,88491.0,88477.0,0.01130237]
[1769441335987,0.03,88491.0,88480.0,0.66357454]
[1769441336192,0.03,88490.0,88481.0,0.02457589]
[1769441336397,0.03,88490.0,88472.0,0.01130301]
[1769441336603,0.03,88490.0,88474.0,0.05651376]
[1769441336806,0.03,88490.0,88474.0,0.65227256]
[1769441337148,0.18501892,88504.0,88474.0,0.65227256]
[1769441337149,0.03,88496.0,88474.0,0.65227256]
[1769441337277,0.06376794,88496.0,88474.0,0.65227256]
[1769441337479,0.05285856,88496.0,88475.0,0.01130262]
[1769441337675,0.05285856,88496.0,88475.0,0.66357518]
[1769441337933,0.05285856,88496.0,88478.0,0.06781345]
[1769441338138,0.03,88496.0,88480.0,0.67684845]
[1769441338316,0.03,88495.0,88480.0,0.67684845]
[1769441338516,0.03,88493.0,88474.0,0.01130275]
[1769441338719,0.05285856,88493.0,88474.0,0.01130275]
[1769441338928,0.05285856,88493.0,88472.0,0.66357557]
[1769441339528,0.05285856,88493.0,88474.0,0.01130275]
[1769441339695,0.05285856,88493.0,88477.0,0.01130237]
[1769441340023,0.02285856,88508.0,88481.0,0.01130186]
[1769441340223,0.02285856,88508.0,88480.0,0.72008415]
[1769441340426,0.02285856,88508.0,88480.0,0.65227256]
[1769441340630,0.02285856,88508.0,88481.0,0.05650923]
[1769441340976,0.02285856,88508.0,88480.0,0.01130198]
[1769441340977,0.03,88518.0,88491.0,0.02457589]
[1769441341092,0.03,88516.0,88494.0,0.05650096]
[1769441341292,0.03,88516.0,88495.0,0.0972897]
[1769441341516,0.05285856,88512.0,88495.0,0.0972897]
[1769441341728,0.03,88512.0,88496.0,0.05649917]
[1769441342040,0.02285856,88524.0,88496.0,0.05649938]
[1769441342240,0.02285856,88524.0,88498.0,0.01129969]
[1769441342441,0.02285856,88524.0,88500.0,0.01129943]
[1769441342671,0.03,88521.0,88504.0,0.01129892]
[1769441342844,0.0003101,88528.0,88508.0,0.02457589]
[1769441343199,0.01160596,88528.0,88508.0,0.02457589]
[1769441343328,0.02285856,88527.0,88505.0,0.17372]
[1769441343740,0.05285856,88526.0,88505.0,0.17372]
[1769441344521,0.05285856,88526.0,88506.0,0.01129866]
[1769441344750,0.0003101,88528.0,88509.0,0.03587417]
[1769441344751,0.001,88527.0,88509.0,0.03587417]
[1769441345024,0.001,88527.0,88510.0,0.67684845]
[1769441345730,0.03,88526.0,88505.0,0.17372]
[1769441346109,0.03,88526.0,88505.0,0.18501879]
[1769441346311,0.03,88526.0,88505.0,0.86186724]
[1769441346639,0.03,88526.0,88508.0,0.66357097]
[1769441346797,0.03,88526.0,88509.0,0.1020048]
[1769441346994,0.03,88526.0,88509.0,0.82206678]
[1769441347206,0.0004,88563.0,88509.0,0.1020048]
[1769441347433,0.6755702,88579.0,88530.0,0.47099721]
[1769441347603,0.6755702,88579.0,88510.0,0.04058853]
[1769441347604,0.6755702,88579.0,88554.0,0.02457589]
[1769441347968,0.6755702,88579.0,88543.0,0.01129394]
[1769441347969,0.00999999,88554.0,88547.0,0.17368]
[1769441348175,0.6755702,88565.0,88549.0,0.01129318]
[1769441348379,0.47042016,88580.0,88549.0,0.01129318]
[1769441348380,0.03,88564.0,88549.0,0.01129318]
[1769441348587,0.03,88564.0,88550.0,0.06141257]
[1769441348984,0.03,88564.0,88550.0,0.05011952]
[1769441349205,0.03,88549.0,88547.0,0.17368]
[1769441349404,0.03,88549.0,88542.0,0.01129407]
[1769441349538,0.03,88549.0,88543.0,0.01129394]
[1769441349743,0.03,88549.0,88542.0,0.01129407]
[1769441349744,0.03,88549.0,88546.0,0.01129356]
[1769441349945,0.03,88549.0,88544.0,0.01129382]
[1769441350146,0.03,88548.0,88542.0,0.06776432]
[1769441350353,0.03,88548.0,88544.0,0.05646863]
[1769441350670,0.03,88548.0,88542.0,0.01129407]
[1769441350871,0.03,88548.0,88543.0,0.06776331]
[1769441351097,0.03,88548.0,88545.0,0.01129369]
[1769441351258,0.03,88547.0,88546.0,0.01129356]
[1769441351884,0.03,88547.0,88546.0,0.06776138]
[1769441352581,0.03,88547.0,88546.0,0.0676052]
[1769441352805,0.02285856,88564.0,88549.0,0.01129318]
[1769441353018,0.02285856,88564.0,88548.0,0.0112933]
[1769441353218,0.02285856,88564.0,88547.0,0.01129343]
[1769441353553,0.07928787,88563.0,88546.0,0.01129356]
[1769441353716,0.10214643,88563.0,88542.0,0.01129407]
[1769441353948,0.7055702,88559.0,88534.0,0.01129509]
[1769441354152,0.03,88555.0,88534.0,0.01129509]
[1769441354358,0.03,88555.0,88538.0,0.01129458]
[1769441354557,0.03,88555.0,88537.0,0.01129471]
[1769441354558,0.04796168,88555.0,88537.0,0.01129471]
[1769441354870,0.04796168,88555.0,88542.0,0.01129407]
[1769441355101,0.03,88555.0,88542.0,0.01129407]
[1769441355280,0.03,88554.0,88534.0,0.01129509]
[1769441355480,0.03,88554.0,88537.0,0.06776822]
[1769441355746,0.03,88554.0,88537.0,0.01129471]
[1769441355949,0.04892437,88554.0,88534.0,0.01129509]
[1769441356163,0.03,88552.0,88537.0,0.06776773]
[1769441356342,0.03,88552.0,88537.0,0.01129471]
[1769441356913,0.03,88552.0,88535.0,0.01129496]
[1769441356914,0.03,88552.0,88539.0,0.01129445]
[1769441357140,0.03,88551.0,88536.0,0.02457589]
[1769441357277,0.03,88551.0,88532.0,0.65227256]
[1769441357278,0.17364,88558.0,88545.0,0.01129369]
[1769441357487,0.17364,88558.0,88546.0,0.01129356]
[1769441358392,0.17364,88562.0,88547.0,0.03629342]
[1769441358526,0.17364,88562.0,88547.0,0.02499999]
[1769441359166,0.17364,88562.0,88549.0,0.01129318]
[1769441359353,0.03,88561.0,88547.0,0.03629342]
[1769441359852,0.03,88561.0,88547.0,0.02499999]
[1769441360261,0.001,88562.0,88547.0,0.02499999]
[1769441360680,0.03,88560.0,88547.0,0.02499999]
[1769441361042,0.03,88560.0,88530.0,0.05647771]
[1769441361247,0.03,88549.0,88532.0,0.03629534]
[1769441361528,0.03,88549.0,88533.0,0.06777085]
[1769441361817,0.17364,88564.0,88517.0,0.02499999]
[1769441361818,0.03,88532.0,88517.0,0.02499999]
[1769441362773,0.03,88531.0,88514.0,0.05684933]
[1769441362976,0.03,88531.0,88514.0,0.0003615]
[1769441363126,0.03,88531.0,88514.0,0.03665913]
[1769441363334,0.03,88531.0,88516.0,0.01129739]
[1769441363739,0.03,88538.0,88516.0,0.01129739]
[1769441363943,0.17809717,88539.0,88515.0,0.01129752]
[1769441363944,0.03,88536.0,88515.0,0.01129752]
[1769441364143,0.03,88536.0,88514.0,0.02536149]
[1769441364544,0.00449717,88538.0,88514.0,0.0003615]
[1769441364750,0.001,88531.0,88514.0,0.0003615]
[1769441365346,0.00449717,88534.0,88514.0,0.0003615]
[1769441365889,0.00449717,88534.0,88515.0,0.03566271]
[1769441366026,0.00449717,88534.0,88515.0,0.09215027]
[1769441366220,0.00449717,88534.0,88515.0,0.02436519]
[1769441366428,0.001,88531.0,88515.0,0.02436519]
[1769441367108,0.03,88514.0,88500.0,0.02436519]
[1769441368063,0.03,88513.0,88500.0,0.02436519]
[1769441368556,0.03,88513.0,88447.0,0.0384]
[1769441368557,0.03,88513.0,88485.0,0.02436519]
[1769441368558,0.03,88499.0,88485.0,0.02436519]
[1769441368759,0.03,88499.0,88484.0,0.0004915]
[1769441368965,0.67731189,88499.0,88484.0,0.0004915]
[1769441369162,0.03,88499.0,88486.0,0.01130122]
[1769441369368,0.03,88499.0,88486.0,0.06780704]
[1769441369518,0.03,88498.0,88486.0,0.01130122]
[1769441369721,0.03,88498.0,88487.0,0.01130109]
[1769441369931,0.03,88498.0,88488.0,0.01130096]
[1769441370136,0.03,88498.0,88486.0,0.01130122]
[1769441370339,0.03,88498.0,88485.0,0.01130135]
[1769441370515,0.03,88504.0,88486.0,0.01130122]
[1769441370701,0.03,88504.0,88485.0,0.01130135]
[1769441370904,0.03,88504.0,88488.0,0.01130096]
[1769441371100,0.001,88499.0,88485.0,0.06780788]
[1769441371299,0.001,88499.0,88486.0,0.01130122]
[1769441371561,0.001,88499.0,88486.0,0.06780724]
[1769441371793,0.03,88504.0,88484.0,0.0004915]
[1769441371963,0.03,88497.0,88484.0,0.01179297]
[1769441372207,0.03,88497.0,88485.0,0.01130135]
[1769441372543,0.03,88497.0,88486.0,0.01130122]
[1769441372887,0.03,88496.0,88485.0,0.02436519]
[1769441373290,0.03,88496.0,88487.0,0.01130109]
[1769441373515,0.03,88496.0,88489.0,0.64935359]
[1769441373919,0.03,88488.0,88477.0,0.17364]
[1769441374135,0.03,88488.0,88487.0,0.05650547]
[1769441374409,0.02317865,88501.0,88488.0,0.01130096]
[1769441374565,0.02317865,88513.0,88491.0,0.02436519]
[1769441374766,0.02317865,88512.0,88492.0,0.00116519]
[1769441374968,0.02317865,88512.0,88491.0,0.64935359]
[1769441374969,0.03,88509.0,88491.0,0.58091878]
[1769441375173,0.03,88509.0,88404.0,0.28154809]
[1769441375174,0.02317865,88536.0,88513.0,0.01129777]
[1769441375550,0.02317865,88536.0,88515.0,0.64935359]
[1769441375751,0.02317865,88536.0,88520.0,0.01129688]
[1769441375902,0.02317865,88536.0,88517.0,0.01129726]
[1769441376106,0.02317865,88536.0,88500.0,0.01129943]
[1769441376107,0.03,88529.0,88500.0,0.01129943]
[1769441376328,0.03,88516.0,88501.0,0.19804519]
[1769441377204,0.001,88509.0,88501.0,0.23480298]
[1769441377409,0.001,88509.0,88501.0,0.19804519]
[1769441377659,0.03,88524.0,88501.0,0.19804519]
[1769441377869,0.05317865,88524.0,88501.0,0.19804519]
[1769441378069,0.05317865,88524.0,88502.0,0.01129917]
[1769441378299,0.05317865,88524.0,88503.0,0.64935359]
[1769441378475,0.03,88524.0,88502.0,0.01129917]
[1769441378648,0.01129535,88532.0,88501.0,0.24147542]
[1769441378649,0.05317865,88519.0,88501.0,0.17368]
[1769441379676,0.03,88510.0,88501.0,0.16368001]
[1769441381055,0.03,88509.0,88501.0,0.16368001]
[1769441381489,0.09095771,88523.0,88501.0,0.16368001]
[1769441381718,0.02317865,88523.0,88501.0,0.16368001]
[1769441382279,0.03,88522.0,88501.0,0.16368001]
[1769441382613,0.03,88522.0,88504.0,0.01129892]
[1769441382800,0.03,88522.0,88505.0,0.45873923]
[1769441383009,0.05317865,88522.0,88505.0,0.10802486]
[1769441383249,0.03,88520.0,88501.0,0.16368001]
[1769441383573,0.05317865,88520.0,88501.0,0.23147572]
[1769441383779,0.05317865,88520.0,88502.0,0.01129917]
[1769441384128,0.05317865,88520.0,88504.0,0.01129892]
[1769441384331,0.05317865,88520.0,88505.0,0.60408636]
[1769441384678,0.05317865,88520.0,88505.0,0.54752047]
[1769441384881,0.05317865,88520.0,88505.0,0.37782344]
[1769441385177,0.05317865,88520.0,88505.0,0.20812577]
[1769441385423,0.05317865,88520.0,88501.0,0.16368001]
[1769441385424,0.02317865,88519.0,88501.0,0.16368001]
[1769441385604,0.03,88508.0,88501.0,0.16368001]
[1769441385746,0.03,88504.0,88501.0,0.16368001]
[1769441386983,0.02317865,88505.0,88501.0,0.16368001]
[1769441387816,0.50745862,88509.0,88501.0,0.16368001]
[1769441388066,0.02317865,88512.0,88501.0,0.16368001]
[1769441388212,0.056477,88532.0,88501.0,0.16368001]
[1769441388213,0.2447,88535.0,88501.0,0.19474161]
[1769441388422,0.02317865,88550.0,88537.0,0.01129471]
[1769441388612,0.02317865,88550.0,88526.0,0.64935359]
[1769441388613,0.02317865,88550.0,88534.0,0.16641888]
[1769441388815,0.03,88552.0,88534.0,0.16641888]
[1769441389044,0.03,88552.0,88535.0,0.01129496]
[1769441389304,0.03,88552.0,88537.0,0.01129471]
[1769441389834,0.03,88556.0,88538.0,0.01129458]
[1769441390301,0.03,88556.0,88537.0,0.01129471]
[1769441390516,0.03,88556.0,88536.0,0.01129484]
[1769441390517,0.05427063,88556.0,88534.0,0.82428044]
[1769441390706,0.05427063,88556.0,88534.0,0.81298535]
[1769441390860,0.03,88554.0,88534.0,0.15528]
[1769441391065,0.03,88554.0,88536.0,0.01129484]
[1769441391282,0.03,88554.0,88535.0,0.01129496]
[1769441391873,0.68964963,88559.0,88535.0,0.01129496]
[1769441392077,0.03,88557.0,88535.0,0.01129496]
[1769441392473,0.03,88555.0,88534.0,0.15528]
[1769441392676,0.03,88555.0,88535.0,0.01129496]
[1769441392894,0.03,88555.0,88534.0,0.15528]
[1769441393298,0.665379,88555.0,88534.0,0.15496762]
[1769441393504,0.63238628,88555.0,88534.0,0.15496762]
[1769441393919,0.47002016,88550.0,88519.0,0.011297]
[1769441394103,0.03,88541.0,88526.0,0.01129611]
[1769441394436,0.635379,88552.0,88536.0,0.01129484]
[1769441394844,0.02427063,88553.0,88539.0,0.01129445]
[1769441395044,0.02427063,88560.0,88542.0,0.01129407]
[1769441395195,0.05427063,88566.0,88545.0,0.01129369]
[1769441395397,0.665379,88566.0,88544.0,0.01129382]
[1769441395597,0.03,88564.0,88542.0,0.01129407]
[1769441395819,0.05427063,88564.0,88542.0,0.01129407]
[1769441396024,0.03,88562.0,88541.0,0.02422958]
[1769441396188,0.05427063,88562.0,88541.0,0.02422958]
[1769441396389,0.03,88560.0,88541.0,0.02422958]
[1769441397455,0.03,88559.0,88541.0,0.02422958]
[1769441398447,0.0112905,88570.0,88537.0,0.65770535]
[1769441398448,0.05427063,88556.0,88537.0,0.65770535]
[1769441398850,0.05427063,88556.0,88537.0,0.66787631]
[1769441399083,0.05427063,88556.0,88537.0,0.6565816]
[1769441400198,0.05427063,88556.0,88538.0,0.66899993]
[1769441400402,0.635379,88575.0,88550.0,0.01129305]
[1769441400547,0.01129088,88567.0,88551.0,0.02422958]
[1769441400750,0.635379,88550.0,88524.0,0.02422958]
[1769441400953,0.635379,88550.0,88477.0,0.13568]
[1769441400954,0.635379,88542.0,88515.0,0.02422958]
[1769441401204,0.635379,88542.0,88504.0,0.65770535]
[1769441401205,0.01129547,88531.0,88502.0,0.02422958]
[1769441401403,0.635379,88522.0,88500.0,0.0452]
[1769441401761,0.64366016,88530.0,88500.0,0.0452]
[1769441401762,0.02427063,88515.0,88500.0,0.0452]
[1769441401957,0.635379,88514.0,88500.0,0.0452]
[1769441402704,0.645379,88500.0,88484.0,0.0004915]
[1769441402956,1.11539916,88500.0,88484.0,0.0004915]
[1769441403257,1.11539916,88500.0,88475.0,0.17364]
[1769441403258,0.02427063,88498.0,88475.0,0.17364]
[1769441403402,0.02427063,88495.0,88464.0,0.02422958]
[1769441403604,0.03557095,88493.0,88465.0,0.17364]
[1769441403814,0.01130032,88493.0,88465.0,0.17364]
[1769441404019,0.01130058,88491.0,88465.0,0.17364]
[1769441404251,0.04163463,88492.0,88465.0,0.17364]
[1769441404461,0.04163463,88492.0,88464.0,0.02422958]
[1769441404859,0.02427063,88492.0,88464.0,0.02422958]
[1769441405078,0.02427063,88492.0,88464.0,0.03553361]
[1769441405279,0.02427063,88492.0,88464.0,0.02422958]
[1769441405487,0.05650684,88485.0,88463.0,0.17364]
[1769441405694,0.02427063,88474.0,88459.0,0.04524]
[1769441405910,0.02427063,88474.0,88440.0,0.0113071]
[1769441405911,0.02427063,88462.0,88435.0,0.04524]
[1769441406919,0.02427063,88462.0,88436.0,0.65770535]
[1769441407097,0.01130428,88462.0,88435.0,0.04524]
[1769441407299,0.02427063,88461.0,88435.0,0.04524]
[1769441407651,0.02427063,88459.0,88435.0,0.04524]
[1769441408414,0.0113048,88458.0,88435.0,0.04524]
[1769441408611,0.03557581,88455.0,88435.0,0.04524]
[1769441408821,0.01130543,88453.0,88435.0,0.04524]
[1769441411639,0.03,88438.0,88426.0,0.0003195]
[1769441411838,0.03,88436.0,88426.0,0.0003195]
[1769441412421,0.001,88444.0,88426.0,0.65802485]
[1769441412813,0.03,88445.0,88426.0,0.51858485]
[1769441413124,0.001,88436.0,88426.0,0.51858485]
[1769441413324,0.03,88445.0,88430.0,0.01130837]
[1769441413665,0.02427063,88458.0,88433.0,0.65770535]
[1769441413867,0.18502377,88466.0,88430.0,0.01981151]
[1769441413868,0.03,88455.0,88430.0,0.01981151]
[1769441414116,0.03,88445.0,88413.0,0.01131055]
[1769441414324,0.47153869,88450.0,88413.0,0.06786315]
[1769441414325,0.02427063,88440.0,88413.0,0.06786315]
[1769441414527,0.03,88439.0,88414.0,0.83138535]
[1769441414722,0.00655771,88438.0,88414.0,0.83138535]
[1769441415131,0.00655771,88438.0,88415.0,0.01131029]
[1769441415337,0.00655771,88438.0,88414.0,0.83138535]
[1769441415538,0.03,88427.0,88412.0,0.0002]
[1769441415692,0.03,88413.0,88412.0,0.0002]
[1769441416628,0.03,88425.0,88412.0,0.0002]
[1769441416890,0.001,88413.0,88412.0,0.0002]
[1769441417840,0.05427063,88421.0,88412.0,0.0002]
[1769441418043,0.000481,88407.0,88397.0,0.0002]
[1769441418263,0.03,88409.0,88397.0,0.0002]
[1769441419280,0.68962403,88409.0,88397.0,0.0002]
[1769441419472,0.03,88407.0,88397.0,0.0002]
[1769441419699,0.03,88396.0,88388.0,0.0004]
[1769441420620,0.02387417,88408.0,88388.0,0.0004]